Workbook

Sheet Data Entry
A1: Data Entry
A3: Tab 1: Fuel Use Decline, Number of Tanks, & Number of Sites
B5: Fuel Use Decline Scenarios
B6: General Data | E6: Straight Line Decline | H6: Logistic Decline | K6: Other Decline Function - to be added
B7: Starting Year | C7: 2020 | E7: Yes/No (blank) | H7: Yes/No (blank) | I7: YES | K7: Yes/No
B8: # Years | C8: 40 | E8: End fuel use (mb/d) | F8: 0 | H8: x0 | I8: =C8/2/2 -> 10 | K8: TBD
B9: Initial Fuel Use (mb/d) | C9: =(78)/0.02686/42/365 -> 0.19 | H9: k | I9: 0.47 | K9: TBD
H10: Fuel use(x) = max-(max/(1+exp(-k(x-xo))
H11: Where:
H12: max is the peak motor fuel use;
H13: k is >0 and controls the slope of the decline curve; and
H14: x0 is the number of time periods to the inflection point.
B16: Number of USTs
B17: Initial # Acive USTs | C17: 8,472
B18: # USTs/site | C18: =540423/193000 -> 2.8
B19: Initial # Active Sites | C19: =C17/C18 -> 3,026
B20: Avg capacity of sites increases X% over Y years | C20: 25% | D20: 40
B21: # sites closed and replaced by new sites X%/year | C21: 0.5%
B22: Initial # TOS sites | C22: 200
B23: # TOS sites closed X%/year for Y years | C23: 2.5% | D23: 40
A25: Tab 2: Number of Releases and Abandoned Sites
B26: Initial fraction of sites where new release discovered at closure | C26: 23.6%
B27: Final fraction of sites where new release discovered at closure - X% and Y years | C27: 7.8% | D27: 40
B28: Initial # Backlog release sites - #, % currenty in ongoing cleanup, and % in MNA that will be closed | C28: 420 | D28: 10% | E28: 50%
B29: # years over which backlog site cleanups are initiated | C29: 30
B30: # years over which backlog MNA site cleanups are closed | C30: 20
B31: % sites w/ release discovery w/ USTs repaired or replaced - %/year | C31: 1.0%
B32: % of Total Sites to Corrective Action that become abandoned | C32: 10%
A34: Tab 3: Corrective Action Costs
B35: Average Cost to Complete the Corrective Action; % of National Average | C35: =E35*D35 -> $212,222 | D35: 150% | E35: $141,481
B36: $ spent in first X years | C36: 50% | D36: 2
B37: Years to complete cleanup | C37: 12
B38: Annual MNA cost | C38: $20,000
A40: Tab 4: Funding & Surplus
B41: Initial Surplus in State Fund ($ millions) | C41: $0.100
B42: tax or fee on the quantity of fuel ($/gal) | C42: =0.0272 -> $0.0272
B43: Annual fee on each tank in service | C43: $250
B44: Reductions due to Fund Cap, or Legislative or Executive action ($millions) | C44: manual adjust columns H and I on "Funding & Surplus" tab
B45: Other Expenses eg transfers out, staff, 3rd pty claims ($millions) | C45: $19

Sheet Fuel Use, Tanks, & Sites
A2: Motor Fuel Transition
C8: Phase in years
C9: ='Data Entry'!C8 -> 40 | D9: Storage tank capacity needed | G9: # UST Sites | J9: # USTs | L9: Temporarily Out of Service Sites | P9: Total # Sites Closed
A10: Year | C10: Motor Fuel Use (mb/d) | D10: Initial # Active Sites | E10: # Active Sites/Fuel Used (Sites/mb/d) | F10: # Active UST Sites Needed | G10: # Sites Retired from Less Need | H10: # Sites Closed and Replaced w/ New Sites | I10: Cumulative # UST Sites Closed | J10: # USTs/ Site | K10: # Active USTs Needed | L10: Initial # TOS Sites | M10: Fraction of Initial TOS Sites Closed Each Year | N10: # TOS Sites Cosed | O10: # TOS Sites Remaining
A11: ='Data Entry'!C7 -> 2020 | B11: 1 | C11: ='Data Entry'!C9 -> 0.18943 | D11: ='Data Entry'!C19 -> 3,026 | E11: =D11/C11 -> 15,972 | F11: =E11*C11 -> 3,026 | G11: =F11-F12 -> 83 | H11: =F11*'Data Entry'!$C$21*2 -> 30 | I11: =G11+H11 -> 113 | J11: ='Data Entry'!C18 -> 2.8 | K11: ='Data Entry'!C17 -> 8,472 | L11: ='Data Entry'!C22 -> 200 | M11: ='Data Entry'!$C$23*2 -> 5.0% | N11: =L$11*M11 -> 10 | O11: =L11-N11 -> 190 | P11: =N11+H11+G11 -> 123
A12: =A11+2 -> 2022 | B12: =B11+1 -> 2 | C12: =IF('Data Entry'!$I$7="YES",C$11-(C$11/(1+EXP(-'Data Entry'!$I$9*((A12-'Data Entry'!$C$7)/2-'Data Entry'!$I$8)))), C11-($C$11-'Data Entry'!$F$8)/'Data Entry'!$C$8*2) -> 0.18671 | E12: =E11-((E$11*'Data Entry'!C$20/('Data Entry'!D$20-2))*2) -> 15,762 | F12: =E12*C12 -> 2,943 | G12: 64 | H12: =F12*'Data Entry'!$C$21*2 -> 29 | I12: =I11+G12+H12 -> 206 | K12: ='Data Entry'!C$18*(F12) -> 8,241 | M12: =M11 -> 5.0% | N12: 10 | O12: =O11-N11 -> 180 | P12: 103
A13: 2024 | B13: 3 | C13: =IF('Data Entry'!$I$7="YES",C$11-(C$11/(1+EXP(-'Data Entry'!$I$9*((A13-'Data Entry'!$C$7)/2-'Data Entry'!$I$8)))), C12-($C$11-'Data Entry'!$F$8)/'Data Entry'!$C$8*2) -> 0.18512 | E13: =E12-((E$11*'Data Entry'!C$20/('Data Entry'!D$20-2))*2) -> 15,552 | F13: =E13*C13 -> 2,879 | G13: 77 | H13: =F13*'Data Entry'!$C$21*2 -> 29 | I13: =I12+G13+H13 -> 312 | K13: ='Data Entry'!C$18*(F13) -> 8,061 | M13: =M12 -> 5.0% | N13: 10 | O13: =O12-N12 -> 170 | P13: 116
A14: 2026 | B14: 4 | C14: =IF('Data Entry'!$I$7="YES",C$11-(C$11/(1+EXP(-'Data Entry'!$I$9*((A14-'Data Entry'!$C$7)/2-'Data Entry'!$I$8)))), C13-($C$11-'Data Entry'!$F$8)/'Data Entry'!$C$8*2) -> 0.18263 | E14: =E13-((E$11*'Data Entry'!C$20/('Data Entry'!D$20-2))*2) -> 15,342 | F14: 2,802 | G14: 97 | H14: =F14*'Data Entry'!$C$21*2 -> 28 | I14: 437 | K14: ='Data Entry'!C$18*(F14) -> 7,845 | M14: 5.0% | N14: 10 | O14: 160 | P14: 135
A15: 2028 | B15: 5 | C15: =IF('Data Entry'!$I$7="YES",C$11-(C$11/(1+EXP(-'Data Entry'!$I$9*((A15-'Data Entry'!$C$7)/2-'Data Entry'!$I$8)))), C14-($C$11-'Data Entry'!$F$8)/'Data Entry'!$C$8*2) -> 0.17877 | E15: =E14-((E$11*'Data Entry'!C$20/('Data Entry'!D$20-2))*2) -> 15,131 | F15: 2,705 | G15: 125 | H15: =F15*'Data Entry'!$C$21*2 -> 27 | I15: 589 | K15: ='Data Entry'!C$18*(F15) -> 7,575 | M15: 5.0% | N15: 10 | O15: 150 | P15: 162
A16: 2030 | B16: 6 | C16: =IF('Data Entry'!$I$7="YES",C$11-(C$11/(1+EXP(-'Data Entry'!$I$9*((A16-'Data Entry'!$C$7)/2-'Data Entry'!$I$8)))), C15-($C$11-'Data Entry'!$F$8)/'Data Entry'!$C$8*2) -> 0.17294 | E16: =E15-((E$11*'Data Entry'!C$20/('Data Entry'!D$20-2))*2) -> 14,921 | F16: 2,580 | G16: 163 | H16: =F16*'Data Entry'!$C$21*2 -> 26 | I16: 777 | K16: ='Data Entry'!C$18*(F16) -> 7,226 | M16: 5.0% | N16: 10 | O16: 140 | P16: 198
A17: 2032 | B17: 7 | C17: =IF('Data Entry'!$I$7="YES",C$11-(C$11/(1+EXP(-'Data Entry'!$I$9*((A17-'Data Entry'!$C$7)/2-'Data Entry'!$I$8)))), C16-($C$11-'Data Entry'!$F$8)/'Data Entry'!$C$8*2) -> 0.16435 | E17: =E16-((E$11*'Data Entry'!C$20/('Data Entry'!D$20-2))*2) -> 14,711 | F17: 2,418 | G17: 210 | H17: =F17*'Data Entry'!$C$21*2 -> 24 | I17: 1,011 | K17: ='Data Entry'!C$18*(F17) -> 6,770 | M17: 5.0% | N17: 10 | O17: 130 | P17: 244
A18: 2034 | B18: 8 | C18: =IF('Data Entry'!$I$7="YES",C$11-(C$11/(1+EXP(-'Data Entry'!$I$9*((A18-'Data Entry'!$C$7)/2-'Data Entry'!$I$8)))), C17-($C$11-'Data Entry'!$F$8)/'Data Entry'!$C$8*2) -> 0.15226 | E18: =E17-((E$11*'Data Entry'!C$20/('Data Entry'!D$20-2))*2) -> 14,501 | F18: 2,208 | G18: 261 | H18: =F18*'Data Entry'!$C$21*2 -> 22 | I18: 1,295 | K18: ='Data Entry'!C$18*(F18) -> 6,182 | M18: 5.0% | N18: 10 | O18: 120 | P18: 293
A19: 2036 | B19: 9 | C19: =IF('Data Entry'!$I$7="YES",C$11-(C$11/(1+EXP(-'Data Entry'!$I$9*((A19-'Data Entry'!$C$7)/2-'Data Entry'!$I$8)))), C18-($C$11-'Data Entry'!$F$8)/'Data Entry'!$C$8*2) -> 0.13622 | E19: =E18-((E$11*'Data Entry'!C$20/('Data Entry'!D$20-2))*2) -> 14,291 | F19: 1,947 | G19: 305 | H19: =F19*'Data Entry'!$C$21*2 -> 19 | I19: 1,619 | K19: ='Data Entry'!C$18*(F19) -> 5,451 | M19: 5.0% | N19: 10 | O19: 110 | P19: 335
A20: 2038 | B20: 10 | C20: =IF('Data Entry'!$I$7="YES",C$11-(C$11/(1+EXP(-'Data Entry'!$I$9*((A20-'Data Entry'!$C$7)/2-'Data Entry'!$I$8)))), C19-($C$11-'Data Entry'!$F$8)/'Data Entry'!$C$8*2) -> 0.11657 | E20: =E19-((E$11*'Data Entry'!C$20/('Data Entry'!D$20-2))*2) -> 14,081 | F20: 1,641 | G20: 328 | H20: =F20*'Data Entry'!$C$21*2 -> 16 | I20: 1,963 | K20: ='Data Entry'!C$18*(F20) -> 4,596 | M20: 5.0% | N20: 10 | O20: 100 | P20: 354
A21: 2040 | B21: 11 | C21: =IF('Data Entry'!$I$7="YES",C$11-(C$11/(1+EXP(-'Data Entry'!$I$9*((A21-'Data Entry'!$C$7)/2-'Data Entry'!$I$8)))), C20-($C$11-'Data Entry'!$F$8)/'Data Entry'!$C$8*2) -> 0.09471 | E21: =E20-((E$11*'Data Entry'!C$20/('Data Entry'!D$20-2))*2) -> 13,871 | F21: 1,314 | G21: 318 | H21: =F21*'Data Entry'!$C$21*2 -> 13 | I21: 2,295 | K21: ='Data Entry'!C$18*(F21) -> 3,679 | M21: 5.0% | N21: 10 | O21: 90 | P21: 342
A22: 2042 | B22: 12 | C22: =IF('Data Entry'!$I$7="YES",C$11-(C$11/(1+EXP(-'Data Entry'!$I$9*((A22-'Data Entry'!$C$7)/2-'Data Entry'!$I$8)))), C21-($C$11-'Data Entry'!$F$8)/'Data Entry'!$C$8*2) -> 0.07286 | E22: =E21-((E$11*'Data Entry'!C$20/('Data Entry'!D$20-2))*2) -> 13,660 | F22: 995 | G22: 280 | H22: =F22*'Data Entry'!$C$21*2 -> 10 | I22: 2,584 | K22: ='Data Entry'!C$18*(F22) -> 2,787 | M22: 5.0% | N22: 10 | O22: 80 | P22: 300
A23: 2044 | B23: 13 | C23: =IF('Data Entry'!$I$7="YES",C$11-(C$11/(1+EXP(-'Data Entry'!$I$9*((A23-'Data Entry'!$C$7)/2-'Data Entry'!$I$8)))), C22-($C$11-'Data Entry'!$F$8)/'Data Entry'!$C$8*2) -> 0.05321 | E23: =E22-((E$11*'Data Entry'!C$20/('Data Entry'!D$20-2))*2) -> 13,450 | F23: 716 | G23: 224 | H23: =F23*'Data Entry'!$C$21*2 -> 7 | I23: 2,815 | K23: ='Data Entry'!C$18*(F23) -> 2,004 | M23: 5.0% | N23: 10 | O23: 70 | P23: 241
A24: 2046 | B24: 14 | C24: =IF('Data Entry'!$I$7="YES",C$11-(C$11/(1+EXP(-'Data Entry'!$I$9*((A24-'Data Entry'!$C$7)/2-'Data Entry'!$I$8)))), C23-($C$11-'Data Entry'!$F$8)/'Data Entry'!$C$8*2) -> 0.03717 | E24: =E23-((E$11*'Data Entry'!C$20/('Data Entry'!D$20-2))*2) -> 13,240 | F24: 492 | G24: 165 | H24: =F24*'Data Entry'!$C$21*2 -> 5 | I24: 2,985 | K24: ='Data Entry'!C$18*(F24) -> 1,378 | M24: 5.0% | N24: 10 | O24: 60 | P24: 180
A25: 2048 | B25: 15 | C25: =IF('Data Entry'!$I$7="YES",C$11-(C$11/(1+EXP(-'Data Entry'!$I$9*((A25-'Data Entry'!$C$7)/2-'Data Entry'!$I$8)))), C24-($C$11-'Data Entry'!$F$8)/'Data Entry'!$C$8*2) -> 0.02508 | E25: =E24-((E$11*'Data Entry'!C$20/('Data Entry'!D$20-2))*2) -> 13,030 | F25: 327 | G25: 115 | H25: =F25*'Data Entry'!$C$21*2 -> 3 | I25: 3,104 | K25: ='Data Entry'!C$18*(F25) -> 915 | M25: 5.0% | N25: 10 | O25: 50 | P25: 129
A26: 2050 | B26: 16 | C26: =IF('Data Entry'!$I$7="YES",C$11-(C$11/(1+EXP(-'Data Entry'!$I$9*((A26-'Data Entry'!$C$7)/2-'Data Entry'!$I$8)))), C25-($C$11-'Data Entry'!$F$8)/'Data Entry'!$C$8*2) -> 0.01649 | E26: =E25-((E$11*'Data Entry'!C$20/('Data Entry'!D$20-2))*2) -> 12,820 | F26: 211 | G26: 77 | H26: =F26*'Data Entry'!$C$21*2 -> 2 | I26: 3,183 | K26: ='Data Entry'!C$18*(F26) -> 592 | M26: 5.0% | N26: 10 | O26: 40 | P26: 89
A27: 2052 | B27: 17 | C27: =IF('Data Entry'!$I$7="YES",C$11-(C$11/(1+EXP(-'Data Entry'!$I$9*((A27-'Data Entry'!$C$7)/2-'Data Entry'!$I$8)))), C26-($C$11-'Data Entry'!$F$8)/'Data Entry'!$C$8*2) -> 0.01066 | E27: =E26-((E$11*'Data Entry'!C$20/('Data Entry'!D$20-2))*2) -> 12,610 | F27: 134 | G27: 50 | H27: =F27*'Data Entry'!$C$21*2 -> 1 | I27: 3,235 | K27: ='Data Entry'!C$18*(F27) -> 376 | M27: 5.0% | N27: 10 | O27: 30 | P27: 61
A28: 2054 | B28: 18 | C28: =IF('Data Entry'!$I$7="YES",C$11-(C$11/(1+EXP(-'Data Entry'!$I$9*((A28-'Data Entry'!$C$7)/2-'Data Entry'!$I$8)))), C27-($C$11-'Data Entry'!$F$8)/'Data Entry'!$C$8*2) -> 0.00680 | E28: =E27-((E$11*'Data Entry'!C$20/('Data Entry'!D$20-2))*2) -> 12,399 | F28: 84 | G28: 32 | H28: =F28*'Data Entry'!$C$21*2 -> 1 | I28: 3,267 | K28: ='Data Entry'!C$18*(F28) -> 236 | M28: 5.0% | N28: 10 | O28: 20 | P28: 43
A29: 2056 | B29: 19 | C29: =IF('Data Entry'!$I$7="YES",C$11-(C$11/(1+EXP(-'Data Entry'!$I$9*((A29-'Data Entry'!$C$7)/2-'Data Entry'!$I$8)))), C28-($C$11-'Data Entry'!$F$8)/'Data Entry'!$C$8*2) -> 0.00431 | E29: =E28-((E$11*'Data Entry'!C$20/('Data Entry'!D$20-2))*2) -> 12,189 | F29: 53 | G29: 20 | H29: =F29*'Data Entry'!$C$21*2 -> 0.5 | I29: 3,288 | K29: ='Data Entry'!C$18*(F29) -> 147 | M29: 5.0% | N29: 10 | O29: 10 | P29: 31
A30: 2058 | B30: 20 | C30: =IF('Data Entry'!$I$7="YES",C$11-(C$11/(1+EXP(-'Data Entry'!$I$9*((A30-'Data Entry'!$C$7)/2-'Data Entry'!$I$8)))), C29-($C$11-'Data Entry'!$F$8)/'Data Entry'!$C$8*2) -> 0.00272 | E30: =E29-((E$11*'Data Entry'!C$20/('Data Entry'!D$20-2))*2) -> 11,979 | F30: 33 | G30: 12 | H30: =F30*'Data Entry'!$C$21*2 -> 0.3 | I30: 3,301 | K30: ='Data Entry'!C$18*(F30) -> 91 | M30: 5.0% | N30: 10 | O30: 0 | P30: 23
A31: 2060 | B31: 21 | C31: =IF('Data Entry'!$I$7="YES",C$11-(C$11/(1+EXP(-'Data Entry'!$I$9*((A31-'Data Entry'!$C$7)/2-'Data Entry'!$I$8)))), C30-($C$11-'Data Entry'!$F$8)/'Data Entry'!$C$8*2) -> 0.00171 | E31: =E30-((E$11*'Data Entry'!C$20/('Data Entry'!D$20-2))*2) -> 11,769 | F31: 20 | G31: 20 | H31: =F31*'Data Entry'!$C$21*2 -> 0.2 | I31: 3,321 | K31: ='Data Entry'!C$18*(F31) -> 56 | P31: 20
A32: 2062 | B32: 22 | P32: 0
A33: 2064
A34: 2066
A35: 2068
A36: 2070
A37: Total | G37: =SUM(G11:G31) -> 3,026 | H37: =SUM(H11:H31) -> 295 | M37: =SUM(M11:M36) -> 100.0% | N37: =SUM(N11:N36) -> 200 | P37: =SUM(P11:P31) -> 3,521
C47: National Data Perspective
F48: IEA data | G48: active USTs | H48: facilities | I48: Facilities/gpd | J48: USTs/ Fac
C49: 2022 | F49: =9.1+4.1 -> 13.2 | G49: 537,706 | H49: 193,000 | I49: =H49/F49 -> 14621 | J49: =G49/H49 -> 2.8
C50: 2021 | F50: =8.9+4.1 -> 13.0 | G50: 539,610 | H50: 193,000 | I50: =H50/F50 -> 14846 | J50: =G50/H50 -> 2.8
C51: 2020 | F51: =8.8+4 -> 12.8 | G51: 540,423 | H51: 193,000 | I51: =H51/F51 -> 15078 | J51: =G51/H51 -> 2.8
C52: 2019 | F52: =9.9+4.2 -> 14.1 | G52: 546,192 | H52: 197,000 | I52: =H52/F52 -> 13972 | J52: =G52/H52 -> 2.8
C53: 2018 | F53: =9.9+4.3 -> 14.2 | G53: 550,379 | H53: 199,000 | I53: =H53/F53 -> 14014 | J53: =G53/H53 -> 2.8
C54: avg | I54: =AVERAGE(I49:I53) -> 14506 | J54: =AVERAGE(J49:J53) -> 2.8

Sheet Releases & Abandons
A9: Year | B9: Backlog to CA | C9: # Sites in MNA That Will Close | D9: Sites w/ releases confirmed at UST closure | G9: # Releases Discovery w/ UST Repair or Replace | H9: Total # Sites to Corrective Action | I9: Abandoned Sites that Need Corrective Action
D10: Total # Sites Closed | E10: Fraction of Sites Where New Release Discovered at Closure | F10: Discovery at Closure
A11: ='Fuel Use, Tanks, & Sites'!A11 -> 2020 | B11: ='Data Entry'!C$28*'Data Entry'!D$28 -> 42 | C11: ='Data Entry'!$C$28*'Data Entry'!$E$28 -> 210 | D11: ='Fuel Use, Tanks, & Sites'!P11 -> 123 | E11: ='Data Entry'!C26 -> 24% | F11: =E11*D11 -> 29 | G11: ='Fuel Use, Tanks, & Sites'!F12*'Data Entry'!$C$31*2 -> 59 | H11: =B11+F11+G11 -> 130 | I11: =(H11)*'Data Entry'!$C$32 -> 13
A12: ='Fuel Use, Tanks, & Sites'!A12 -> 2022 | B12: =2*(1-'Data Entry'!$D$28-'Data Entry'!$E$28)*'Data Entry'!$C$28/'Data Entry'!C$29 -> 11 | C12: =C11-(2*'Data Entry'!$C$28*'Data Entry'!$E$28/'Data Entry'!$C$30) -> 189 | D12: ='Fuel Use, Tanks, & Sites'!P12 -> 103 | E12: =$E$11-(('Data Entry'!$C$26-'Data Entry'!$C$27)*('Fuel Use, Tanks, & Sites'!A12-'Data Entry'!$C$7)/'Data Entry'!$C$8) -> 23% | F12: 24 | G12: ='Fuel Use, Tanks, & Sites'!F13*'Data Entry'!$C$31*2 -> 58 | H12: =B12+F12+G12 -> 92 | I12: =(H12)*'Data Entry'!$C$32 -> 9
A13: ='Fuel Use, Tanks, & Sites'!A13 -> 2024 | B13: =2*(1-'Data Entry'!$D$28-'Data Entry'!$E$28)*'Data Entry'!$C$28/'Data Entry'!C$29 -> 11 | C13: =C12-(2*'Data Entry'!$C$28*'Data Entry'!$E$28/'Data Entry'!$C$30) -> 168 | D13: ='Fuel Use, Tanks, & Sites'!P13 -> 116 | E13: =$E$11-(('Data Entry'!$C$26-'Data Entry'!$C$27)*('Fuel Use, Tanks, & Sites'!A13-'Data Entry'!$C$7)/'Data Entry'!$C$8) -> 22% | F13: 26 | G13: ='Fuel Use, Tanks, & Sites'!F14*'Data Entry'!$C$31*2 -> 56 | H13: 93 | I13: =(H13)*'Data Entry'!$C$32 -> 9
A14: ='Fuel Use, Tanks, & Sites'!A14 -> 2026 | B14: =2*(1-'Data Entry'!$D$28-'Data Entry'!$E$28)*'Data Entry'!$C$28/'Data Entry'!C$29 -> 11 | C14: =C13-(2*'Data Entry'!$C$28*'Data Entry'!$E$28/'Data Entry'!$C$30) -> 147 | D14: ='Fuel Use, Tanks, & Sites'!P14 -> 135 | E14: =$E$11-(('Data Entry'!$C$26-'Data Entry'!$C$27)*('Fuel Use, Tanks, & Sites'!A14-'Data Entry'!$C$7)/'Data Entry'!$C$8) -> 21% | F14: 29 | G14: ='Fuel Use, Tanks, & Sites'!F15*'Data Entry'!$C$31*2 -> 54 | H14: 94 | I14: =(H14)*'Data Entry'!$C$32 -> 9
A15: ='Fuel Use, Tanks, & Sites'!A15 -> 2028 | B15: =2*(1-'Data Entry'!$D$28-'Data Entry'!$E$28)*'Data Entry'!$C$28/'Data Entry'!C$29 -> 11 | C15: =C14-(2*'Data Entry'!$C$28*'Data Entry'!$E$28/'Data Entry'!$C$30) -> 126 | D15: ='Fuel Use, Tanks, & Sites'!P15 -> 162 | E15: =$E$11-(('Data Entry'!$C$26-'Data Entry'!$C$27)*('Fuel Use, Tanks, & Sites'!A15-'Data Entry'!$C$7)/'Data Entry'!$C$8) -> 20% | F15: 33 | G15: ='Fuel Use, Tanks, & Sites'!F16*'Data Entry'!$C$31*2 -> 52 | H15: 96 | I15: =(H15)*'Data Entry'!$C$32 -> 10
A16: ='Fuel Use, Tanks, & Sites'!A16 -> 2030 | B16: =2*(1-'Data Entry'!$D$28-'Data Entry'!$E$28)*'Data Entry'!$C$28/'Data Entry'!C$29 -> 11 | C16: =C15-(2*'Data Entry'!$C$28*'Data Entry'!$E$28/'Data Entry'!$C$30) -> 105 | D16: ='Fuel Use, Tanks, & Sites'!P16 -> 198 | E16: =$E$11-(('Data Entry'!$C$26-'Data Entry'!$C$27)*('Fuel Use, Tanks, & Sites'!A16-'Data Entry'!$C$7)/'Data Entry'!$C$8) -> 20% | F16: 39 | G16: ='Fuel Use, Tanks, & Sites'!F17*'Data Entry'!$C$31*2 -> 48 | H16: 99 | I16: =(H16)*'Data Entry'!$C$32 -> 10
A17: ='Fuel Use, Tanks, & Sites'!A17 -> 2032 | B17: =2*(1-'Data Entry'!$D$28-'Data Entry'!$E$28)*'Data Entry'!$C$28/'Data Entry'!C$29 -> 11 | C17: =C16-(2*'Data Entry'!$C$28*'Data Entry'!$E$28/'Data Entry'!$C$30) -> 84 | D17: ='Fuel Use, Tanks, & Sites'!P17 -> 244 | E17: =$E$11-(('Data Entry'!$C$26-'Data Entry'!$C$27)*('Fuel Use, Tanks, & Sites'!A17-'Data Entry'!$C$7)/'Data Entry'!$C$8) -> 19% | F17: 46 | G17: ='Fuel Use, Tanks, & Sites'!F18*'Data Entry'!$C$31*2 -> 44 | H17: 101 | I17: =(H17)*'Data Entry'!$C$32 -> 10
A18: ='Fuel Use, Tanks, & Sites'!A18 -> 2034 | B18: =2*(1-'Data Entry'!$D$28-'Data Entry'!$E$28)*'Data Entry'!$C$28/'Data Entry'!C$29 -> 11 | C18: =C17-(2*'Data Entry'!$C$28*'Data Entry'!$E$28/'Data Entry'!$C$30) -> 63 | D18: ='Fuel Use, Tanks, & Sites'!P18 -> 293 | E18: =$E$11-(('Data Entry'!$C$26-'Data Entry'!$C$27)*('Fuel Use, Tanks, & Sites'!A18-'Data Entry'!$C$7)/'Data Entry'!$C$8) -> 18% | F18: 53 | G18: ='Fuel Use, Tanks, & Sites'!F19*'Data Entry'!$C$31*2 -> 39 | H18: 103 | I18: =(H18)*'Data Entry'!$C$32 -> 10
A19: ='Fuel Use, Tanks, & Sites'!A19 -> 2036 | B19: =2*(1-'Data Entry'!$D$28-'Data Entry'!$E$28)*'Data Entry'!$C$28/'Data Entry'!C$29 -> 11 | C19: =C18-(2*'Data Entry'!$C$28*'Data Entry'!$E$28/'Data Entry'!$C$30) -> 42 | D19: ='Fuel Use, Tanks, & Sites'!P19 -> 335 | E19: =$E$11-(('Data Entry'!$C$26-'Data Entry'!$C$27)*('Fuel Use, Tanks, & Sites'!A19-'Data Entry'!$C$7)/'Data Entry'!$C$8) -> 17% | F19: 58 | G19: ='Fuel Use, Tanks, & Sites'!F20*'Data Entry'!$C$31*2 -> 33 | H19: 102 | I19: =(H19)*'Data Entry'!$C$32 -> 10
A20: ='Fuel Use, Tanks, & Sites'!A20 -> 2038 | B20: =2*(1-'Data Entry'!$D$28-'Data Entry'!$E$28)*'Data Entry'!$C$28/'Data Entry'!C$29 -> 11 | C20: =C19-(2*'Data Entry'!$C$28*'Data Entry'!$E$28/'Data Entry'!$C$30) -> 21 | D20: ='Fuel Use, Tanks, & Sites'!P20 -> 354 | E20: =$E$11-(('Data Entry'!$C$26-'Data Entry'!$C$27)*('Fuel Use, Tanks, & Sites'!A20-'Data Entry'!$C$7)/'Data Entry'!$C$8) -> 16% | F20: 58 | G20: ='Fuel Use, Tanks, & Sites'!F21*'Data Entry'!$C$31*2 -> 26 | H20: 96 | I20: =(H20)*'Data Entry'!$C$32 -> 10
A21: ='Fuel Use, Tanks, & Sites'!A21 -> 2040 | B21: =2*(1-'Data Entry'!$D$28-'Data Entry'!$E$28)*'Data Entry'!$C$28/'Data Entry'!C$29 -> 11 | C21: =C20-(2*'Data Entry'!$C$28*'Data Entry'!$E$28/'Data Entry'!$C$30) -> 0 | D21: ='Fuel Use, Tanks, & Sites'!P21 -> 342 | E21: =$E$11-(('Data Entry'!$C$26-'Data Entry'!$C$27)*('Fuel Use, Tanks, & Sites'!A21-'Data Entry'!$C$7)/'Data Entry'!$C$8) -> 16% | F21: 54 | G21: ='Fuel Use, Tanks, & Sites'!F22*'Data Entry'!$C$31*2 -> 20 | H21: 85 | I21: =(H21)*'Data Entry'!$C$32 -> 8
A22: ='Fuel Use, Tanks, & Sites'!A22 -> 2042 | B22: =2*(1-'Data Entry'!$D$28-'Data Entry'!$E$28)*'Data Entry'!$C$28/'Data Entry'!C$29 -> 11 | D22: ='Fuel Use, Tanks, & Sites'!P22 -> 300 | E22: =$E$11-(('Data Entry'!$C$26-'Data Entry'!$C$27)*('Fuel Use, Tanks, & Sites'!A22-'Data Entry'!$C$7)/'Data Entry'!$C$8) -> 15% | F22: 45 | G22: ='Fuel Use, Tanks, & Sites'!F23*'Data Entry'!$C$31*2 -> 14 | H22: 70 | I22: =(H22)*'Data Entry'!$C$32 -> 7
A23: ='Fuel Use, Tanks, & Sites'!A23 -> 2044 | B23: =2*(1-'Data Entry'!$D$28-'Data Entry'!$E$28)*'Data Entry'!$C$28/'Data Entry'!C$29 -> 11 | D23: ='Fuel Use, Tanks, & Sites'!P23 -> 241 | E23: =$E$11-(('Data Entry'!$C$26-'Data Entry'!$C$27)*('Fuel Use, Tanks, & Sites'!A23-'Data Entry'!$C$7)/'Data Entry'!$C$8) -> 14% | F23: 34 | G23: ='Fuel Use, Tanks, & Sites'!F24*'Data Entry'!$C$31*2 -> 10 | H23: 55 | I23: =(H23)*'Data Entry'!$C$32 -> 6
A24: ='Fuel Use, Tanks, & Sites'!A24 -> 2046 | B24: =2*(1-'Data Entry'!$D$28-'Data Entry'!$E$28)*'Data Entry'!$C$28/'Data Entry'!C$29 -> 11 | D24: ='Fuel Use, Tanks, & Sites'!P24 -> 180 | E24: =$E$11-(('Data Entry'!$C$26-'Data Entry'!$C$27)*('Fuel Use, Tanks, & Sites'!A24-'Data Entry'!$C$7)/'Data Entry'!$C$8) -> 13% | F24: 24 | G24: ='Fuel Use, Tanks, & Sites'!F25*'Data Entry'!$C$31*2 -> 7 | H24: 42 | I24: =(H24)*'Data Entry'!$C$32 -> 4
A25: ='Fuel Use, Tanks, & Sites'!A25 -> 2048 | B25: =2*(1-'Data Entry'!$D$28-'Data Entry'!$E$28)*'Data Entry'!$C$28/'Data Entry'!C$29 -> 11 | D25: ='Fuel Use, Tanks, & Sites'!P25 -> 129 | E25: =$E$11-(('Data Entry'!$C$26-'Data Entry'!$C$27)*('Fuel Use, Tanks, & Sites'!A25-'Data Entry'!$C$7)/'Data Entry'!$C$8) -> 13% | F25: 16 | G25: ='Fuel Use, Tanks, & Sites'!F26*'Data Entry'!$C$31*2 -> 4 | H25: 32 | I25: =(H25)*'Data Entry'!$C$32 -> 3
A26: ='Fuel Use, Tanks, & Sites'!A26 -> 2050 | B26: =2*(1-'Data Entry'!$D$28-'Data Entry'!$E$28)*'Data Entry'!$C$28/'Data Entry'!C$29 -> 11 | D26: ='Fuel Use, Tanks, & Sites'!P26 -> 89 | E26: =$E$11-(('Data Entry'!$C$26-'Data Entry'!$C$27)*('Fuel Use, Tanks, & Sites'!A26-'Data Entry'!$C$7)/'Data Entry'!$C$8) -> 12% | F26: 10 | G26: ='Fuel Use, Tanks, & Sites'!F27*'Data Entry'!$C$31*2 -> 3 | H26: 24 | I26: =(H26)*'Data Entry'!$C$32 -> 2
A27: ='Fuel Use, Tanks, & Sites'!A27 -> 2052 | D27: ='Fuel Use, Tanks, & Sites'!P27 -> 61 | E27: =$E$11-(('Data Entry'!$C$26-'Data Entry'!$C$27)*('Fuel Use, Tanks, & Sites'!A27-'Data Entry'!$C$7)/'Data Entry'!$C$8) -> 11% | F27: 7 | G27: ='Fuel Use, Tanks, & Sites'!F28*'Data Entry'!$C$31*2 -> 2 | H27: 8 | I27: =(H27)*'Data Entry'!$C$32 -> 1
A28: ='Fuel Use, Tanks, & Sites'!A28 -> 2054 | D28: ='Fuel Use, Tanks, & Sites'!P28 -> 43 | E28: =$E$11-(('Data Entry'!$C$26-'Data Entry'!$C$27)*('Fuel Use, Tanks, & Sites'!A28-'Data Entry'!$C$7)/'Data Entry'!$C$8) -> 10% | F28: 4 | G28: ='Fuel Use, Tanks, & Sites'!F29*'Data Entry'!$C$31*2 -> 1 | H28: 5 | I28: =(H28)*'Data Entry'!$C$32 -> 1
A29: ='Fuel Use, Tanks, & Sites'!A29 -> 2056 | D29: ='Fuel Use, Tanks, & Sites'!P29 -> 31 | E29: =$E$11-(('Data Entry'!$C$26-'Data Entry'!$C$27)*('Fuel Use, Tanks, & Sites'!A29-'Data Entry'!$C$7)/'Data Entry'!$C$8) -> 9% | F29: 3 | G29: ='Fuel Use, Tanks, & Sites'!F30*'Data Entry'!$C$31*2 -> 1 | H29: 4 | I29: =(H29)*'Data Entry'!$C$32 -> 0
A30: ='Fuel Use, Tanks, & Sites'!A30 -> 2058 | D30: ='Fuel Use, Tanks, & Sites'!P30 -> 23 | E30: =$E$11-(('Data Entry'!$C$26-'Data Entry'!$C$27)*('Fuel Use, Tanks, & Sites'!A30-'Data Entry'!$C$7)/'Data Entry'!$C$8) -> 9% | F30: 2 | G30: ='Fuel Use, Tanks, & Sites'!F31*'Data Entry'!$C$31*2 -> 0 | H30: 2 | I30: =(H30)*'Data Entry'!$C$32 -> 0
A31: ='Fuel Use, Tanks, & Sites'!A31 -> 2060 | D31: ='Fuel Use, Tanks, & Sites'!P31 -> 20 | E31: =$E$11-(('Data Entry'!$C$26-'Data Entry'!$C$27)*('Fuel Use, Tanks, & Sites'!A31-'Data Entry'!$C$7)/'Data Entry'!$C$8) -> 8% | F31: 2 | G31: ='Fuel Use, Tanks, & Sites'!F32*'Data Entry'!$C$31*2 -> 0 | H31: 2 | I31: =(H31)*'Data Entry'!$C$32 -> 0
A32: ='Fuel Use, Tanks, & Sites'!A32 -> 2062 | E32: ='Data Entry'!C27 -> 8% | F32: 0 | G32: ='Fuel Use, Tanks, & Sites'!F33*'Data Entry'!$C$31*2 -> 0 | H32: =B32+F32 -> 0
A33: ='Fuel Use, Tanks, & Sites'!A33 -> 2064
A34: ='Fuel Use, Tanks, & Sites'!A34 -> 2066
A35: ='Fuel Use, Tanks, & Sites'!A35 -> 2068
A36: ='Fuel Use, Tanks, & Sites'!A36 -> 2070
A37: Total | B37: =SUM(B11:B36) -> 210 | D37: =SUM(D11:D36) -> 3,521 | F37: =SUM(F11:F36) -> 594 | G37: =SUM(G11:G36) -> 530 | H37: =SUM(H11:H36) -> 1,334 | I37: =SUM(I11:I36) -> 133
B38: =SUM(B37:C37) -> 210

Sheet Corrective Action Costs
C1: Corrective action costs ($ millions)
E9: Costs by Year ($ millions)
B10: Newly Initiated or On-going Corrective Action Projects | AA10: MNA Projects | AD10: Total Costs
A11: Year | B11: Total # Sites to Corrective Action | C11: Average Cost to Complete the Corrective Action | D11: Corrective Action Cost Spread Over Time | E11: Corrective Action Costs for Each Period | Z11: Total New and On-Going CA Costs | AA11: # Sites in MNA That Will Close | AB11: Annual MNA Costs per Site | AC11: Period MNA Costs | AD11: Period CA Costs | AE11: Cumulative CA Costs
E12: 2020 | F12: =E12+2 -> 2022 | G12: 2024 | H12: 2026 | I12: 2028 | J12: 2030 | K12: 2032 | L12: 2034 | M12: 2036 | N12: 2038 | O12: 2040 | P12: 2042 | Q12: 2044 | R12: 2046 | S12: 2048 | T12: 2050 | U12: 2052 | V12: 2054 | W12: 2056 | X12: 2058 | Y12: 2060
A13: ='Fuel Use, Tanks, & Sites'!A11 -> 2020 | B13: ='Releases & Abandons'!H11 -> 130 | C13: ='Data Entry'!C35 -> $212,222 | D13: =C$13*'Data Entry'!C$36*2/'Data Entry'!D$36 -> $106,111 | E13: =$B$13*$D13/1000000 -> 13.8 | Z13: =SUM(E13:Y13) -> $13.8 | AA13: ='Releases & Abandons'!C11 -> 210 | AB13: ='Data Entry'!C38 -> $20,000 | AC13: =AA13*AB$13/1000000 -> $4.2 | AD13: =Z13+AC13 -> $18.0 | AE13: =AD13 -> $18
A14: ='Fuel Use, Tanks, & Sites'!A12 -> 2022 | B14: ='Releases & Abandons'!H12 -> 92 | D14: =($C$13-$D$13)/('Data Entry'!$C$37-'Data Entry'!$D$36)*2 -> $21,222 | E14: =$B$13*$D14/1000000 -> 2.8 | F14: =$B$14*$D13/1000000 -> 9.8 | Z14: =SUM(E14:Y14) -> $12.6 | AA14: ='Releases & Abandons'!C12 -> 189 | AC14: =AA14*AB$13/1000000 -> $3.8 | AD14: =Z14+AC14 -> $16.3 | AE14: =AE13+AD14 -> $34
A15: ='Fuel Use, Tanks, & Sites'!A13 -> 2024 | B15: ='Releases & Abandons'!H13 -> 93 | D15: =($C$13-$D$13)/('Data Entry'!$C$37-'Data Entry'!$D$36)*2 -> $21,222 | E15: 2.8 | F15: =$B$14*$D14/1000000 -> 2.0 | G15: =$B$15*$D13/1000000 -> 9.8 | Z15: $14.6 | AA15: ='Releases & Abandons'!C13 -> 168 | AC15: $3.4 | AD15: $17.9 | AE15: $52
A16: ='Fuel Use, Tanks, & Sites'!A14 -> 2026 | B16: ='Releases & Abandons'!H14 -> 94 | D16: =($C$13-$D$13)/('Data Entry'!$C$37-'Data Entry'!$D$36)*2 -> $21,222 | E16: 2.8 | F16: 2.0 | G16: =$B$15*$D14/1000000 -> 2.0 | H16: =$B16*$D$13/1000000 -> 10.0 | Z16: $16.6 | AA16: ='Releases & Abandons'!C14 -> 147 | AC16: $2.9 | AD16: $19.6 | AE16: $72
A17: ='Fuel Use, Tanks, & Sites'!A15 -> 2028 | B17: ='Releases & Abandons'!H15 -> 96 | D17: =($C$13-$D$13)/('Data Entry'!$C$37-'Data Entry'!$D$36)*2 -> $21,222 | E17: 2.8 | F17: 2.0 | G17: 2.0 | H17: =$B$16*$D14/1000000 -> 2.0 | I17: =$B$17*$D13/1000000 -> 10.2 | Z17: $18.8 | AA17: ='Releases & Abandons'!C15 -> 126 | AC17: $2.5 | AD17: $21.4 | AE17: $93
A18: ='Fuel Use, Tanks, & Sites'!A16 -> 2030 | B18: ='Releases & Abandons'!H16 -> 99 | D18: =($C$13-$D$13)/('Data Entry'!$C$37-'Data Entry'!$D$36)*2 -> $21,222 | E18: 2.8 | F18: 2.0 | G18: 2.0 | H18: 2.0 | I18: =$B$17*$D14/1000000 -> 2.0 | J18: =$B$18*$D13/1000000 -> 10.5 | Z18: $21.2 | AA18: ='Releases & Abandons'!C16 -> 105 | AC18: $2.1 | AD18: $23.3 | AE18: $116
A19: ='Fuel Use, Tanks, & Sites'!A17 -> 2032 | B19: ='Releases & Abandons'!H17 -> 101 | F19: 2.0 | G19: 2.0 | H19: 2.0 | I19: 2.0 | J19: =$B$18*$D14/1000000 -> 2.1 | K19: =$B$19*$D13/1000000 -> 10.8 | Z19: $20.8 | AA19: ='Releases & Abandons'!C17 -> 84 | AC19: $1.7 | AD19: $22.5 | AE19: $139
A20: ='Fuel Use, Tanks, & Sites'!A18 -> 2034 | B20: ='Releases & Abandons'!H18 -> 103 | G20: 2.0 | H20: 2.0 | I20: 2.0 | J20: 2.1 | K20: =$B$19*$D14/1000000 -> 2.2 | L20: =$B$20*$D13/1000000 -> 10.9 | Z20: $21.2 | AA20: ='Releases & Abandons'!C18 -> 63 | AC20: $1.3 | AD20: $22.4 | AE20: $161
A21: ='Fuel Use, Tanks, & Sites'!A19 -> 2036 | B21: ='Releases & Abandons'!H19 -> 102 | H21: 2.0 | I21: 2.0 | J21: 2.1 | K21: 2.2 | L21: =$B$20*$D14/1000000 -> 2.2 | M21: =$B$21*$D13/1000000 -> 10.8 | Z21: $21.3 | AA21: ='Releases & Abandons'!C19 -> 42 | AC21: $0.8 | AD21: $22.1 | AE21: $184
A22: ='Fuel Use, Tanks, & Sites'!A20 -> 2038 | B22: ='Releases & Abandons'!H20 -> 96 | I22: 2.0 | J22: 2.1 | K22: 2.2 | L22: 2.2 | M22: =$B$21*$D14/1000000 -> 2.2 | N22: =$B$22*$D13/1000000 -> 10.2 | Z22: $20.8 | AA22: ='Releases & Abandons'!C20 -> 21 | AC22: $0.4 | AD22: $21.2 | AE22: $205
A23: ='Fuel Use, Tanks, & Sites'!A21 -> 2040 | B23: ='Releases & Abandons'!H21 -> 85 | J23: 2.1 | K23: 2.2 | L23: 2.2 | M23: 2.2 | N23: =$B$22*$D14/1000000 -> 2.0 | O23: =$B$23*$D13/1000000 -> 9.0 | Z23: $19.6 | AA23: ='Releases & Abandons'!C21 -> 0 | AD23: $19.6 | AE23: $224
A24: ='Fuel Use, Tanks, & Sites'!A22 -> 2042 | B24: ='Releases & Abandons'!H22 -> 70 | K24: 2.2 | L24: 2.2 | M24: 2.2 | N24: 2.0 | O24: =$B$23*$D14/1000000 -> 1.8 | P24: =$B$24*$D13/1000000 -> 7.4 | Z24: $17.8 | AA24: ='Releases & Abandons'!C22 -> 0 | AD24: $17.8 | AE24: $242
A25: ='Fuel Use, Tanks, & Sites'!A23 -> 2044 | B25: ='Releases & Abandons'!H23 -> 55 | L25: 2.2 | M25: 2.2 | N25: 2.0 | O25: 1.8 | P25: =$B$24*$D14/1000000 -> 1.5 | Q25: =$B$25*$D13/1000000 -> 5.8 | Z25: $15.5 | AA25: ='Releases & Abandons'!C23 -> 0 | AD25: $15.5 | AE25: $258
A26: ='Fuel Use, Tanks, & Sites'!A24 -> 2046 | B26: ='Releases & Abandons'!H24 -> 42 | M26: 2.2 | N26: 2.0 | O26: 1.8 | P26: 1.5 | Q26: =$B$25*$D14/1000000 -> 1.2 | R26: =$B$26*$D13/1000000 -> 4.4 | Z26: $13.1 | AA26: ='Releases & Abandons'!C24 -> 0 | AD26: $13.1 | AE26: $271
A27: ='Fuel Use, Tanks, & Sites'!A25 -> 2048 | B27: ='Releases & Abandons'!H25 -> 32 | N27: 2.0 | O27: 1.8 | P27: 1.5 | Q27: 1.2 | R27: =$B$26*$D14/1000000 -> 0.9 | S27: =$B$27*$D13/1000000 -> 3.3 | Z27: $10.7 | AA27: ='Releases & Abandons'!C25 -> 0 | AD27: $10.7 | AE27: $281
A28: ='Fuel Use, Tanks, & Sites'!A26 -> 2050 | B28: ='Releases & Abandons'!H26 -> 24 | O28: 1.8 | P28: 1.5 | Q28: 1.2 | R28: 0.9 | S28: =$B$27*$D14/1000000 -> 0.7 | T28: =$B$28*$D13/1000000 -> 2.6 | Z28: $8.6 | AA28: ='Releases & Abandons'!C26 -> 0 | AD28: $8.6 | AE28: $290
A29: ='Fuel Use, Tanks, & Sites'!A27 -> 2052 | B29: ='Releases & Abandons'!H27 -> 8 | P29: 1.5 | Q29: 1.2 | R29: 0.9 | S29: 0.7 | T29: =$B$28*$D14/1000000 -> 0.5 | U29: =$B$29*$D13/1000000 -> 0.9 | Z29: $5.6 | AA29: ='Releases & Abandons'!C27 -> 0 | AD29: $5.6 | AE29: $296
A30: ='Fuel Use, Tanks, & Sites'!A28 -> 2054 | B30: ='Releases & Abandons'!H28 -> 5 | Q30: 1.2 | R30: 0.9 | S30: 0.7 | T30: 0.5 | U30: =$B$29*$D14/1000000 -> 0.2 | V30: =$B$30*$D13/1000000 -> 0.6 | Z30: $4.0 | AA30: ='Releases & Abandons'!C28 -> 0 | AD30: $4.0 | AE30: $300
A31: ='Fuel Use, Tanks, & Sites'!A29 -> 2056 | B31: ='Releases & Abandons'!H29 -> 4 | R31: 0.9 | S31: 0.7 | T31: 0.5 | U31: 0.2 | V31: =$B$30*$D14/1000000 -> 0.1 | W31: =$B$31*$D13/1000000 -> 0.4 | Z31: $2.7 | AA31: ='Releases & Abandons'!C29 -> 0 | AD31: $2.7 | AE31: $302
A32: ='Fuel Use, Tanks, & Sites'!A30 -> 2058 | B32: ='Releases & Abandons'!H30 -> 2 | S32: 0.7 | T32: 0.5 | U32: 0.2 | V32: 0.1 | W32: =$B$31*$D14/1000000 -> 0.1 | X32: =$B$32*$D13/1000000 -> 0.3 | Z32: $1.8 | AA32: ='Releases & Abandons'!C30 -> 0 | AD32: $1.8 | AE32: $304
A33: ='Fuel Use, Tanks, & Sites'!A31 -> 2060 | B33: ='Releases & Abandons'!H31 -> 2 | T33: 0.5 | U33: 0.2 | V33: 0.1 | W33: 0.1 | X33: =$B$32*$D14/1000000 -> 0.1 | Y33: =$B$33*$D13/1000000 -> 0.2 | Z33: $1.1 | AA33: ='Releases & Abandons'!C31 -> 0 | AD33: $1.1 | AE33: $305
A34: ='Fuel Use, Tanks, & Sites'!A32 -> 2062 | B34: ='Releases & Abandons'!H32 -> 0 | U34: 0.2 | V34: 0.1 | W34: 0.1 | X34: 0.1 | Y34: =$B$33*$D14/1000000 -> 0.0 | Z34: $0.5 | AD34: $0.5 | AE34: $306
A35: ='Fuel Use, Tanks, & Sites'!A33 -> 2064 | B35: ='Releases & Abandons'!H33 -> 0 | V35: 0.1 | W35: 0.1 | X35: 0.1 | Y35: 0.0 | Z35: $0.3 | AD35: $0.3 | AE35: $306
A36: ='Fuel Use, Tanks, & Sites'!A34 -> 2066 | B36: ='Releases & Abandons'!H34 -> 0 | W36: 0.1 | X36: 0.1 | Y36: 0.0 | Z36: $0.2 | AD36: $0.2 | AE36: $306
A37: ='Fuel Use, Tanks, & Sites'!A35 -> 2068 | B37: ='Releases & Abandons'!H35 -> 0 | X37: 0.1 | Y37: 0.0 | Z37: $0.1 | AD37: $0.1 | AE37: $306
A38: ='Fuel Use, Tanks, & Sites'!A36 -> 2070 | B38: ='Releases & Abandons'!H36 -> 0 | Y38: 0.0 | Z38: $0.0 | AD38: $0.0 | AE38: $306
A39: Total | D39: =SUM(D13:D18) -> $212,222 | Z39: =SUM(Z13:Z38) -> $283 | AC39: =SUM(AC13:AC38) -> $23 | AD39: =SUM(AD13:AD38) -> $306

Sheet Funding & Surplus
A2: State fund revenue, surplus and shortfall
B9: Revenue ($ millions) | H9: Reductions to Income and Expenses ($ millions) | L9: Periodic | N9: Cumulative
A10: Year | B10: Initial Surplus in State Fund | C10: Tax or Fee on Fuel ($/gal) | D10: Revenue from Tax or Fee on Fuel | E10: Fee on Each UST ($/UST) | F10: Revenue from Fee on USTs | G10: Total Gross Income | H10: Reductions due to Fund Cap, or Legislative or Executive action | I10: Net Income | J10: Other Expenses | K10: Net Income for UST Corrective Action | L10: ='Corrective Action Costs '!AD11 -> Period CA Costs | M10: Period surplus or (shortfall) | N10: ='Corrective Action Costs '!$AE$11 -> Cumulative CA Costs | O10: Cumulative surplus or (shortfall)
A11: 2020 | B11: ='Data Entry'!C41 -> 0.1 | C11: ='Data Entry'!C42 -> $0.02720 | D11: =(42*'Fuel Use, Tanks, & Sites'!$C11*365*$C11)*2 -> 158 | E11: ='Data Entry'!C43 -> $250 | F11: =(E11*('Fuel Use, Tanks, & Sites'!$K11 +'Fuel Use, Tanks, & Sites'!$O11)/1000000)*2 -> 4.3 | G11: =F11+D11 -> 162 | H11: $30m annual cap | I11: =IF(G11>60, 60, G11) -> 60 | J11: ='Data Entry'!C45*2 -> 38 | K11: =I11-J11 -> 22 | L11: ='Corrective Action Costs '!AD13 -> 18 | M11: =K11-'Corrective Action Costs '!AD13 -> 4 | N11: ='Corrective Action Costs '!$AE13 -> 18 | O11: =B11+M11 -> 4
A12: 2022 | C12: =C11 -> $0.02720 | D12: =(42*'Fuel Use, Tanks, & Sites'!$C12*365*$C12)*2 -> 156 | E12: =E11 -> $250 | F12: =(E12*('Fuel Use, Tanks, & Sites'!$K12 +'Fuel Use, Tanks, & Sites'!$O12)/1000000)*2 -> 4.2 | G12: =F12+D12 -> 160 | H12: $30m annual cap | I12: =IF(G12>60, 60, G12) -> 60 | J12: =I12*J$11/$I$11 -> 38 | K12: =I12-J12 -> 22 | L12: ='Corrective Action Costs '!AD14 -> 16 | M12: =K12-'Corrective Action Costs '!AD14 -> 6 | N12: ='Corrective Action Costs '!$AE14 -> 34 | O12: =O11+M12 -> 10
A13: 2024 | C13: $0.02720 | D13: =(42*'Fuel Use, Tanks, & Sites'!$C13*365*$C13)*2 -> 154 | E13: $250 | F13: =(E13*('Fuel Use, Tanks, & Sites'!$K13 +'Fuel Use, Tanks, & Sites'!$O13)/1000000)*2 -> 4.1 | G13: 158 | H13: $30m annual cap | I13: 60 | J13: =I13*J$11/$I$11 -> 38 | K13: 22 | L13: ='Corrective Action Costs '!AD15 -> 18 | M13: =K13-'Corrective Action Costs '!AD15 -> 4 | N13: ='Corrective Action Costs '!$AE15 -> 52 | O13: =O12+M13 -> 14
A14: 2026 | C14: $0.02720 | D14: =(42*'Fuel Use, Tanks, & Sites'!$C14*365*$C14)*2 -> 152 | E14: $250 | F14: =(E14*('Fuel Use, Tanks, & Sites'!$K14 +'Fuel Use, Tanks, & Sites'!$O14)/1000000)*2 -> 4.0 | G14: 156 | H14: $30m annual cap | I14: 60 | J14: 38 | K14: 22 | L14: ='Corrective Action Costs '!AD16 -> 20 | M14: =K14-'Corrective Action Costs '!AD16 -> 2 | N14: ='Corrective Action Costs '!$AE16 -> 72 | O14: 16
A15: 2028 | C15: $0.02720 | D15: =(42*'Fuel Use, Tanks, & Sites'!$C15*365*$C15)*2 -> 149 | E15: $250 | F15: =(E15*('Fuel Use, Tanks, & Sites'!$K15 +'Fuel Use, Tanks, & Sites'!$O15)/1000000)*2 -> 3.9 | G15: 153 | H15: $30m annual cap | I15: 60 | J15: 38 | K15: 22 | L15: ='Corrective Action Costs '!AD17 -> 21 | M15: =K15-'Corrective Action Costs '!AD17 -> 1 | N15: ='Corrective Action Costs '!$AE17 -> 93 | O15: 17
A16: 2030 | C16: $0.02720 | D16: =(42*'Fuel Use, Tanks, & Sites'!$C16*365*$C16)*2 -> 144 | E16: $250 | F16: =(E16*('Fuel Use, Tanks, & Sites'!$K16 +'Fuel Use, Tanks, & Sites'!$O16)/1000000)*2 -> 3.7 | G16: 148 | H16: $30m annual cap | I16: 60 | J16: 38 | K16: 22 | L16: ='Corrective Action Costs '!AD18 -> 23 | M16: =K16-'Corrective Action Costs '!AD18 -> (1) | N16: ='Corrective Action Costs '!$AE18 -> 116 | O16: 16
A17: 2032 | C17: $0.02720 | D17: =(42*'Fuel Use, Tanks, & Sites'!$C17*365*$C17)*2 -> 137 | E17: $250 | F17: =(E17*('Fuel Use, Tanks, & Sites'!$K17 +'Fuel Use, Tanks, & Sites'!$O17)/1000000)*2 -> 3.5 | G17: 141 | H17: $30m annual cap | I17: 60 | J17: 38 | K17: 22 | L17: ='Corrective Action Costs '!AD19 -> 22 | M17: =K17-'Corrective Action Costs '!AD19 -> (0) | N17: ='Corrective Action Costs '!$AE19 -> 139 | O17: 15
A18: 2034 | C18: $0.02720 | D18: =(42*'Fuel Use, Tanks, & Sites'!$C18*365*$C18)*2 -> 127 | E18: $250 | F18: =(E18*('Fuel Use, Tanks, & Sites'!$K18 +'Fuel Use, Tanks, & Sites'!$O18)/1000000)*2 -> 3.2 | G18: 130 | H18: $30m annual cap | I18: 60 | J18: 38 | K18: 22 | L18: ='Corrective Action Costs '!AD20 -> 22 | M18: =K18-'Corrective Action Costs '!AD20 -> (0) | N18: ='Corrective Action Costs '!$AE20 -> 161 | O18: 15
A19: 2036 | C19: $0.02720 | D19: =(42*'Fuel Use, Tanks, & Sites'!$C19*365*$C19)*2 -> 114 | E19: $250 | F19: =(E19*('Fuel Use, Tanks, & Sites'!$K19 +'Fuel Use, Tanks, & Sites'!$O19)/1000000)*2 -> 2.8 | G19: 116 | H19: $30m annual cap | I19: 60 | J19: 38 | K19: 22 | L19: ='Corrective Action Costs '!AD21 -> 22 | M19: =K19-'Corrective Action Costs '!AD21 -> (0) | N19: ='Corrective Action Costs '!$AE21 -> 184 | O19: 15
A20: 2038 | C20: $0.02720 | D20: =(42*'Fuel Use, Tanks, & Sites'!$C20*365*$C20)*2 -> 97 | E20: $250 | F20: =(E20*('Fuel Use, Tanks, & Sites'!$K20 +'Fuel Use, Tanks, & Sites'!$O20)/1000000)*2 -> 2.3 | G20: 100 | H20: $30m annual cap | I20: 60 | J20: 38 | K20: 22 | L20: ='Corrective Action Costs '!AD22 -> 21 | M20: =K20-'Corrective Action Costs '!AD22 -> 1 | N20: ='Corrective Action Costs '!$AE22 -> 205 | O20: 15
A21: 2040 | C21: $0.02720 | D21: =(42*'Fuel Use, Tanks, & Sites'!$C21*365*$C21)*2 -> 79 | E21: $250 | F21: =(E21*('Fuel Use, Tanks, & Sites'!$K21 +'Fuel Use, Tanks, & Sites'!$O21)/1000000)*2 -> 1.9 | G21: 81 | H21: $30m annual cap | I21: 60 | J21: 38 | K21: 22 | L21: ='Corrective Action Costs '!AD23 -> 20 | M21: =K21-'Corrective Action Costs '!AD23 -> 2 | N21: ='Corrective Action Costs '!$AE23 -> 224 | O21: 18
A22: 2042 | C22: $0.02720 | D22: =(42*'Fuel Use, Tanks, & Sites'!$C22*365*$C22)*2 -> 61 | E22: $250 | F22: =(E22*('Fuel Use, Tanks, & Sites'!$K22 +'Fuel Use, Tanks, & Sites'!$O22)/1000000)*2 -> 1.4 | G22: 62 | H22: $30m annual cap | I22: 60 | J22: 38 | K22: 22 | L22: ='Corrective Action Costs '!AD24 -> 18 | M22: =K22-'Corrective Action Costs '!AD24 -> 4 | N22: ='Corrective Action Costs '!$AE24 -> 242 | O22: 22
A23: 2044 | C23: $0.02720 | D23: =(42*'Fuel Use, Tanks, & Sites'!$C23*365*$C23)*2 -> 44 | E23: $250 | F23: =(E23*('Fuel Use, Tanks, & Sites'!$K23 +'Fuel Use, Tanks, & Sites'!$O23)/1000000)*2 -> 1.0 | G23: 45 | H23: $30m annual cap | I23: 45 | J23: 29 | K23: 17 | L23: ='Corrective Action Costs '!AD25 -> 16 | M23: =K23-'Corrective Action Costs '!AD25 -> 1 | N23: ='Corrective Action Costs '!$AE25 -> 258 | O23: 23
A24: 2046 | C24: $0.02720 | D24: =(42*'Fuel Use, Tanks, & Sites'!$C24*365*$C24)*2 -> 31 | E24: $250 | F24: =(E24*('Fuel Use, Tanks, & Sites'!$K24 +'Fuel Use, Tanks, & Sites'!$O24)/1000000)*2 -> 0.7 | G24: 32 | I24: 32 | J24: 20 | K24: 12 | L24: ='Corrective Action Costs '!AD26 -> 13 | M24: =K24-'Corrective Action Costs '!AD26 -> (1) | N24: ='Corrective Action Costs '!$AE26 -> 271 | O24: 22
A25: 2048 | C25: $0.02720 | D25: =(42*'Fuel Use, Tanks, & Sites'!$C25*365*$C25)*2 -> 21 | E25: $250 | F25: =(E25*('Fuel Use, Tanks, & Sites'!$K25 +'Fuel Use, Tanks, & Sites'!$O25)/1000000)*2 -> 0.5 | G25: 21 | I25: 21 | J25: 14 | K25: 8 | L25: ='Corrective Action Costs '!AD27 -> 11 | M25: =K25-'Corrective Action Costs '!AD27 -> (3) | N25: ='Corrective Action Costs '!$AE27 -> 281 | O25: 19
A26: 2050 | C26: $0.02720 | D26: =(42*'Fuel Use, Tanks, & Sites'!$C26*365*$C26)*2 -> 14 | E26: $250 | F26: =(E26*('Fuel Use, Tanks, & Sites'!$K26 +'Fuel Use, Tanks, & Sites'!$O26)/1000000)*2 -> 0.3 | G26: 14 | I26: 14 | J26: 9 | K26: 5 | L26: ='Corrective Action Costs '!AD28 -> 9 | M26: =K26-'Corrective Action Costs '!AD28 -> (3) | N26: ='Corrective Action Costs '!$AE28 -> 290 | O26: 15
A27: 2052 | C27: $0.02720 | D27: =(42*'Fuel Use, Tanks, & Sites'!$C27*365*$C27)*2 -> 9 | E27: $250 | F27: =(E27*('Fuel Use, Tanks, & Sites'!$K27 +'Fuel Use, Tanks, & Sites'!$O27)/1000000)*2 -> 0.2 | G27: 9 | I27: 9 | J27: 6 | K27: 3 | L27: ='Corrective Action Costs '!AD29 -> 6 | M27: =K27-'Corrective Action Costs '!AD29 -> (2) | N27: ='Corrective Action Costs '!$AE29 -> 296 | O27: 13
A28: 2054 | C28: $0.02720 | D28: =(42*'Fuel Use, Tanks, & Sites'!$C28*365*$C28)*2 -> 6 | E28: $250 | F28: =(E28*('Fuel Use, Tanks, & Sites'!$K28 +'Fuel Use, Tanks, & Sites'!$O28)/1000000)*2 -> 0.1 | G28: 6 | I28: 6 | J28: 4 | K28: 2 | L28: ='Corrective Action Costs '!AD30 -> 4 | M28: =K28-'Corrective Action Costs '!AD30 -> (2) | N28: ='Corrective Action Costs '!$AE30 -> 300 | O28: 11
A29: 2056 | C29: $0.02720 | D29: =(42*'Fuel Use, Tanks, & Sites'!$C29*365*$C29)*2 -> 4 | E29: $250 | F29: =(E29*('Fuel Use, Tanks, & Sites'!$K29 +'Fuel Use, Tanks, & Sites'!$O29)/1000000)*2 -> 0.1 | G29: 4 | I29: 4 | J29: 2 | K29: 1 | L29: ='Corrective Action Costs '!AD31 -> 3 | M29: =K29-'Corrective Action Costs '!AD31 -> (1) | N29: ='Corrective Action Costs '!$AE31 -> 302 | O29: 10
A30: 2058 | C30: $0.02720 | D30: =(42*'Fuel Use, Tanks, & Sites'!$C30*365*$C30)*2 -> 2 | E30: $250 | F30: =(E30*('Fuel Use, Tanks, & Sites'!$K30 +'Fuel Use, Tanks, & Sites'!$O30)/1000000)*2 -> 0.0 | G30: 2 | I30: 2 | J30: 1 | K30: 1 | L30: ='Corrective Action Costs '!AD32 -> 2 | M30: =K30-'Corrective Action Costs '!AD32 -> (1) | N30: ='Corrective Action Costs '!$AE32 -> 304 | O30: 9
A31: 2060 | C31: $0.02720 | D31: =(42*'Fuel Use, Tanks, & Sites'!$C31*365*$C31)*2 -> 1 | E31: $250 | F31: =(E31*('Fuel Use, Tanks, & Sites'!$K31 +'Fuel Use, Tanks, & Sites'!$O31)/1000000)*2 -> 0.0 | G31: 1 | I31: 1 | J31: 1 | K31: 1 | L31: ='Corrective Action Costs '!AD33 -> 1 | M31: =K31-'Corrective Action Costs '!AD33 -> (1) | N31: ='Corrective Action Costs '!$AE33 -> 305 | O31: 8
A32: 2062 | C32: $0.02720 | D32: =(42*'Fuel Use, Tanks, & Sites'!$C32*365*$C32)*2 -> 0 | E32: $250 | F32: =(E32*('Fuel Use, Tanks, & Sites'!$K32 +'Fuel Use, Tanks, & Sites'!$O32)/1000000)*2 -> 0 | G32: 0 | I32: 0 | K32: =I32*$K$11/$I$11 -> 0 | L32: ='Corrective Action Costs '!AD34 -> 0 | M32: =K32-'Corrective Action Costs '!AD34 -> (0.5) | N32: ='Corrective Action Costs '!$AE34 -> 306 | O32: 8
A33: 2064 | C33: $0.02720 | D33: =(42*'Fuel Use, Tanks, & Sites'!$C33*365*$C33)*2 -> 0 | E33: $250 | F33: =(E33*('Fuel Use, Tanks, & Sites'!$K33 +'Fuel Use, Tanks, & Sites'!$O33)/1000000)*2 -> 0 | G33: 0 | I33: 0 | K33: 0 | L33: ='Corrective Action Costs '!AD35 -> 0 | M33: =K33-'Corrective Action Costs '!AD35 -> (0.3) | N33: ='Corrective Action Costs '!$AE35 -> 306 | O33: 8
A34: 2066 | C34: $0.02720 | D34: =(42*'Fuel Use, Tanks, & Sites'!$C34*365*$C34)*2 -> 0 | E34: $250 | F34: =(E34*('Fuel Use, Tanks, & Sites'!$K34 +'Fuel Use, Tanks, & Sites'!$O34)/1000000)*2 -> 0 | G34: 0 | I34: 0 | K34: 0 | L34: ='Corrective Action Costs '!AD36 -> 0 | M34: =K34-'Corrective Action Costs '!AD36 -> (0.2) | N34: ='Corrective Action Costs '!$AE36 -> 306 | O34: 7
A35: 2068 | C35: $0.02720 | D35: =(42*'Fuel Use, Tanks, & Sites'!$C35*365*$C35)*2 -> 0 | E35: $250 | F35: =(E35*('Fuel Use, Tanks, & Sites'!$K35 +'Fuel Use, Tanks, & Sites'!$O35)/1000000)*2 -> 0 | G35: 0 | I35: 0 | K35: 0 | L35: ='Corrective Action Costs '!AD37 -> 0 | M35: =K35-'Corrective Action Costs '!AD37 -> (0.1) | N35: ='Corrective Action Costs '!$AE37 -> 306 | O35: 7
A36: 2070 | C36: $0.02720 | D36: =(42*'Fuel Use, Tanks, & Sites'!$C36*365*$C36)*2 -> 0 | E36: $250 | F36: =(E36*('Fuel Use, Tanks, & Sites'!$K36 +'Fuel Use, Tanks, & Sites'!$O36)/1000000)*2 -> 0 | G36: 0 | I36: 0 | K36: 0 | L36: ='Corrective Action Costs '!AD38 -> 0 | M36: =K36-'Corrective Action Costs '!AD38 -> (0.0) | N36: ='Corrective Action Costs '!$AE38 -> 306 | O36: 7
A37: Total | D37: =SUM(D11:D36) -> 1,660 | F37: =SUM(F11:F36) -> 42 | L37: =SUM(L11:L36) -> 306 | M37: =SUM(M11:M36) -> 7
